bitfinex-derivatives/quotes_ETHF0:USTF0_20250803
["timestamp","ask_amount","ask_price","bid_price","bid_amount"]
[1754194753902,1.815,3444.2,3444.1,3.69090019]
[1754194756403,1.0273,3444.2,3444.1,3.69090019]
[1754194756899,1.815,3444.2,3444.1,3.69090019]
[1754194757497,1.815,3444.3,3444.2,2.40706]
[1754194762299,1.815,3444.3,3444.2,2.10026]
[1754194762505,1.815,3444.3,3444.2,1.5195]
[1754194764006,1.815,3444.3,3444.2,1.8263]
[1754194767001,1.815,3444.3,3444.2,5.0341]
[1754194769406,0.3026,3444.9,3444.3,0.58074]
[1754194769616,1.06243,3445.0,3444.3,0.58074]
[1754194769617,0.7247,3444.4,3444.3,2.10024]
[1754194769814,1.815,3444.4,3444.3,4.27164019]
[1754194771310,1.815,3444.4,3444.3,7.47944019]
[1754194771698,0.3004,3444.6,3444.3,5.81850019]
[1754194772009,1.8524,3444.6,3444.5,3.68980019]
[1754194772210,3.2078,3445.1,3444.5,3.68980019]
[1754194772211,0.619,3444.8,3444.6,1.65819]
[1754194772515,0.9966,3444.8,3444.7,3.68980019]
[1754194773311,1.3152,3444.8,3444.7,23.58780019]
[1754194773802,5.0602,3445.1,3445.0,1.8252]
[1754194775201,1.0492,3445.5,3445.4,0.7477]
[1754194775402,1.8524,3445.5,3445.4,3.68980019]
[1754194775912,1.8524,3445.5,3445.4,4.27035019]
[1754194776516,1.3167,3445.5,3445.4,4.27035019]
[1754194777014,3.2078,3446.2,3445.8,1.5219]
[1754194777015,1.0674,3445.9,3445.8,1.5219]
[1754194777214,1.0674,3445.9,3445.8,3.38650019]
[1754194777412,1.0674,3445.9,3445.8,3.68980019]
[1754194777612,1.8524,3445.9,3445.8,3.68980019]
[1754194777916,1.0492,3445.9,3445.8,3.68980019]
[1754194778317,1.8524,3445.9,3445.8,3.68980019]
[1754194779015,1.0492,3445.9,3445.8,3.68980019]
[1754194780113,1.8524,3446.1,3446.0,0.7477]
[1754194780319,1.8524,3446.1,3446.0,1.8252]
[1754194782018,4.7416,3446.2,3446.1,2.40563]
[1754194782320,1.8524,3446.2,3446.1,4.27023019]
[1754194782511,1.8524,3446.2,3446.1,1.8252]
[1754194783117,1.8524,3446.2,3446.1,1.5219]
[1754194791621,1.8524,3446.2,3446.1,3.38650019]
[1754194796624,1.8524,3446.4,3446.3,1.5219]
[1754194799418,1.8524,3446.4,3446.3,1.8252]
[1754194800229,1.0492,3446.4,3446.3,1.8252]
[1754194800534,1.8524,3446.4,3446.3,1.8252]
[1754194804635,1.5338,3446.4,3446.3,1.8252]
[1754194805331,1.8606,3446.4,3446.3,1.8252]
[1754194808546,1.8606,3446.4,3446.3,3.68980019]
[1754194814738,1.56275467,3447.5,3445.1,41.79]
[1754194814739,0.5119,3445.8,3445.7,3.2078]
[1754194814933,1.1309,3445.7,3445.3,3.2078]
[1754194815138,1.846,3445.4,3445.3,3.2078]
[1754194815845,1.846,3445.4,3445.3,4.7265]
[1754194816941,1.3363,3445.7,3445.6,2.4122]
[1754194817141,3.2078,3446.1,3445.8,1.64649]
[1754194817142,1.5192,3445.9,3445.8,1.64649]
[1754194817340,1.846,3445.9,3445.8,1.5187]
[1754194817542,1.846,3445.9,3445.8,0.2083]
[1754194818647,1.846,3445.4,3445.3,6.59110019]
[1754194818847,1.846,3445.4,3445.3,6.12630019]
[1754194819847,1.846,3445.4,3445.3,6.59110019]
[1754194822149,1.846,3445.4,3445.3,6.90410019]
[1754194823852,1.846,3445.4,3445.3,6.59110019]
[1754194824352,1.846,3445.4,3445.3,6.12630019]
[1754194825454,1.846,3445.4,3445.3,5.07240019]
[1754194825652,1.846,3445.1,3445.0,0.58062]
[1754194825844,1.1309,3445.0,3444.9,3.2078]
[1754194826045,1.846,3445.0,3444.9,3.2078]
[1754194827251,1.846,3445.0,3444.9,3.5087]
[1754194827555,1.846,3445.0,3444.9,3.2078]
[1754194827951,2.42662,3445.0,3444.9,3.2078]
[1754194828153,1.846,3445.0,3444.9,3.2078]
[1754194829053,1.846,3444.4,3444.3,3.2078]
[1754194829253,1.846,3444.4,3444.3,3.5087]
[1754194829557,1.846,3444.4,3444.3,4.1818]
[1754194829759,1.846,3444.4,3444.3,4.4006]
[1754194829954,1.846,3444.4,3444.3,3.2078]
[1754194831860,1.846,3444.4,3444.3,4.4126]
[1754194832849,3.2078,3445.1,3444.4,0.58072]
[1754194833159,3.2078,3445.1,3444.5,1.8184]
[1754194833160,1.0535,3444.6,3444.5,1.8184]
[1754194833659,1.8175,3444.6,3444.5,1.8184]
[1754194833962,0.7417,3444.4,3444.3,4.52243]
[1754194834257,1.8175,3444.4,3444.3,3.9417]
[1754194834458,1.8175,3444.4,3444.3,3.2078]
[1754194835053,1.8175,3444.0,3443.9,3.4057]
[1754194835253,1.8175,3444.0,3443.7,0.6279]
[1754194835254,0.536,3443.7,3443.6,0.1979]
[1754194835454,0.7417,3443.7,3443.6,0.6545]
[1754194835654,0.7417,3443.7,3443.5,3.2078]
[1754194836163,1.8175,3443.6,3443.5,3.2078]
[1754194836664,1.8175,3443.6,3443.5,6.58400019]
[1754194837364,0.7417,3444.2,3444.1,0.4175]
[1754194837660,1.32246,3444.2,3443.5,3.9855]
[1754194837859,1.32246,3444.2,3443.5,3.5289]
[1754194838066,0.7417,3443.6,3443.5,3.4057]
[1754194838275,1.8175,3443.6,3443.5,3.4057]
[1754194838652,1.8175,3443.6,3443.5,4.7194]
[1754194840165,1.8175,3443.6,3443.5,5.0262]
[1754194840459,0.3118,3444.0,3443.6,0.58086]
[1754194840662,1.0535,3444.0,3443.9,0.7339]
[1754194840856,1.0535,3444.0,3443.9,1.5116]
[1754194841261,1.8175,3444.0,3443.9,1.5116]
[1754194842462,1.8175,3444.0,3443.9,0.7339]
[1754194842767,0.7417,3443.7,3443.6,1.5116]
[1754194842959,1.8175,3443.7,3443.6,1.5116]
[1754194843154,1.8175,3443.7,3443.6,1.8184]
[1754194844768,1.8175,3443.7,3443.6,0.7339]
[1754194844966,1.8175,3443.7,3443.6,1.5116]
[1754194845564,1.6118,3443.7,3443.6,3.68300019]
[1754194845864,3.78855,3444.3,3443.6,3.68300019]
[1754194845865,4.2613,3444.3,3444.2,0.7339]
[1754194846166,5.0253,3444.3,3444.2,1.5116]
[1754194846366,5.0253,3444.3,3444.2,0.1979]
[1754194846868,5.0253,3444.3,3444.0,0.4566]
[1754194846869,0.7417,3444.3,3444.0,0.4566]
[1754194847163,1.5057,3444.1,3444.0,1.5116]
[1754194847466,1.8175,3444.1,3444.0,1.5116]
[1754194847869,1.8175,3444.1,3444.0,1.8184]
[1754194848876,1.0535,3444.1,3444.0,1.8184]
[1754194849867,0.8478,3444.1,3444.0,1.8184]
[1754194850264,0.8478,3444.4,3444.3,2.39914]
[1754194850457,3.2078,3444.7,3444.3,1.31464]
[1754194850656,1.4989,3444.5,3444.4,1.8184]
[1754194850863,0.5236,3444.5,3444.4,1.8184]
[1754194851071,1.2932,3444.5,3444.4,1.8184]
[1754194851262,1.4989,3444.5,3444.4,1.8184]
[1754194851464,1.8175,3444.5,3444.4,1.8184]
[1754194853476,1.0535,3444.5,3444.4,1.8184]
[1754194853879,1.4989,3444.5,3444.4,1.8184]
[1754194854175,1.8175,3444.5,3444.4,1.8184]
[1754194855380,1.0535,3444.9,3444.8,0.7339]
[1754194855572,1.8175,3444.9,3444.8,1.5116]
[1754194856378,1.0535,3444.9,3444.8,1.5116]
[1754194856578,1.4989,3444.9,3444.8,1.8184]
[1754194856773,1.8175,3444.9,3444.8,1.8184]
[1754194857081,1.4989,3444.9,3444.8,1.8184]
[1754194857379,1.8175,3444.9,3444.8,1.8184]
[1754194860982,1.4989,3444.9,3444.8,1.8184]
[1754194861480,1.8175,3444.9,3444.8,1.8184]
[1754194862082,0.3253,3445.0,3444.9,2.40804]
[1754194862584,3.5331,3445.1,3445.0,1.8274]
[1754194864382,1.5459,3445.4,3445.3,1.8274]
[1754194864575,1.8626,3445.4,3445.3,1.8274]
[1754194866584,1.8626,3445.4,3445.3,1.5219]
[1754194870082,1.8626,3445.4,3445.3,3.38650019]
[1754194870279,1.8626,3445.4,3445.3,3.69200019]
[1754194870482,1.0521,3445.4,3445.3,3.69200019]
[1754194870682,0.5386,3445.5,3445.4,1.86725]
[1754194870982,0.5386,3445.5,3445.4,2.40795]
[1754194871184,3.2078,3445.6,3445.5,0.7656]
[1754194871376,3.7464,3445.6,3445.5,1.8274]
[1754194871575,0.5386,3445.6,3445.5,1.8274]
[1754194871776,1.8626,3445.6,3445.5,1.8274]
[1754194875383,1.3447,3445.6,3445.5,1.8274]
[1754194875686,1.8626,3445.6,3445.5,1.8274]
[1754194876387,0.8509,3445.6,3445.5,1.8274]
[1754194877088,1.6614,3445.6,3445.5,1.8274]
[1754194877490,1.8626,3446.1,3446.0,1.33674]
[1754194877682,1.8626,3446.1,3446.0,2.10234]
[1754194877989,1.8626,3446.1,3446.0,2.40784]
[1754194878585,1.0521,3446.1,3446.0,2.40784]
[1754194878890,1.8626,3446.1,3446.0,2.40784]
[1754194882181,1.5459,3446.1,3446.0,2.40784]
[1754194882382,0.8509,3446.1,3446.0,2.40784]
[1754194883387,3.2078,3446.2,3446.1,1.8274]
[1754194883587,3.2078,3446.2,3446.1,3.69200019]
[1754194883791,3.5331,3446.2,3446.1,3.69200019]
[1754194884087,3.7464,3446.2,3446.1,3.69200019]
[1754194884594,0.5386,3446.2,3446.1,3.69200019]
[1754194885185,1.5459,3446.2,3446.1,3.69200019]
[1754194885389,1.8626,3446.2,3446.1,3.69200019]
[1754194886892,1.8626,3446.2,3446.0,3.78824]
[1754194886893,1.8626,3446.2,3446.0,0.58044]
[1754194887093,0.7268,3446.1,3446.0,0.58044]
[1754194887392,1.8626,3446.1,3446.0,1.34604]
[1754194887589,1.8626,3446.1,3446.0,1.77464]
[1754194887895,1.8626,3446.1,3446.0,2.10234]
[1754194888589,1.8626,3446.1,3446.0,0.58044]
[1754194890291,1.8626,3446.1,3446.0,0.90064]
[1754194890492,1.8626,3446.1,3446.0,1.55904]
[1754194890692,1.8626,3446.1,3446.0,1.77464]
[1754194890895,1.8626,3446.1,3446.0,2.10234]
[1754194891208,1.8626,3446.1,3446.0,3.96694019]
[1754194891708,1.8626,3446.1,3446.0,1.5219]
[1754194891903,0.7268,3446.1,3445.9,0.58046]
[1754194892104,1.8369,3446.0,3445.9,1.39906]
[1754194892307,1.8369,3446.0,3445.9,2.15126]
[1754194893204,1.8369,3446.0,3445.9,0.58046]
[1754194893807,1.8369,3446.0,3445.9,0.90826]
[1754194894003,1.8369,3446.0,3445.9,1.82236]
[1754194894203,1.8369,3446.0,3445.9,2.15126]
[1754194895009,1.8369,3446.0,3445.9,2.44846]
[1754194895812,5.0447,3446.3,3446.2,2.15122]
[1754194896308,5.0447,3446.3,3446.2,2.44842]
[1754194896701,5.0447,3446.3,3446.2,2.15122]
[1754194897208,5.0447,3446.3,3446.2,2.44842]
[1754194898414,5.0447,3446.3,3446.2,2.15122]
[1754194899111,5.0447,3446.3,3446.2,2.44842]
[1754194899610,4.7232,3446.3,3446.2,2.44842]
[1754194899813,5.0447,3446.3,3446.2,2.44842]
[1754194901108,1.8369,3446.3,3446.2,2.44842]
[1754194904607,1.8369,3446.3,3446.2,2.15122]
[1754194905013,1.8369,3446.3,3446.2,0.78562]
[1754194905512,1.8369,3446.3,3446.2,2.15122]
[1754194906012,1.8369,3446.3,3446.2,2.44842]
[1754194914415,1.8369,3446.3,3446.2,2.15122]
[1754194915618,1.8369,3446.3,3446.2,2.44842]
[1754194917523,1.0988,3446.2,3446.0,3.2078]
[1754194917720,1.8369,3446.1,3446.0,3.2078]
[1754194918621,1.8369,3445.7,3445.6,0.58051]
[1754194918828,1.8369,3445.7,3445.5,3.2078]
[1754194919027,0.7381,3445.6,3445.5,3.2078]
[1754194919227,1.8369,3445.6,3445.5,3.2078]
[1754194920628,1.8369,3445.6,3445.3,1.39916]
[1754194920825,1.8369,3445.2,3445.1,3.7884]
[1754194921128,1.8369,3445.2,3445.1,4.607]
[1754194921325,1.8369,3445.2,3445.1,4.8122]
[1754194921627,1.8369,3445.2,3445.1,5.3592]
[1754194922222,1.8369,3445.2,3445.1,7.22380019]
[1754194922619,1.8369,3445.2,3445.1,7.53210019]
[1754194924233,1.8567,3445.2,3445.1,7.53210019]
[1754194925229,1.8744,3445.5,3445.4,0.79595]
[1754194925426,1.0672,3445.5,3445.4,4.23225019]
[1754194925626,1.8744,3445.5,3445.4,4.23225019]
[1754194925932,1.8744,3445.5,3445.4,3.92395019]
[1754194928432,1.8744,3445.5,3445.4,4.23225019]
[1754194929532,1.8744,3445.5,3445.4,2.36765]
[1754194929733,1.8744,3445.5,3445.4,2.05935]
[1754194930630,1.8744,3445.5,3445.4,2.36765]
[1754194931332,1.8744,3445.5,3445.4,2.05935]
[1754194931636,1.8744,3445.9,3445.8,2.05928]
[1754194934131,1.3444,3445.9,3445.8,2.36758]
[1754194934328,1.8744,3446.2,3446.1,2.36754]
[1754194936439,1.8744,3446.2,3446.1,2.05924]
[1754194936639,1.8744,3446.2,3446.1,1.4788]
[1754194936934,0.8008,3445.7,3445.5,0.58054]
[1754194937239,1.8744,3445.5,3445.4,3.2078]
[1754194940436,1.8744,3445.5,3445.4,4.3857]
[1754194940734,1.5542,3445.9,3445.6,0.4579]
[1754194940939,1.8744,3445.6,3445.4,3.2078]
[1754194941127,1.3375,3445.5,3445.4,3.2078]
[1754194941331,1.8744,3445.5,3445.4,3.2078]
[1754194941932,1.8744,3445.5,3445.4,5.79630019]
[1754194942136,1.8744,3445.5,3445.4,4.6866]
[1754194943537,1.0672,3445.9,3445.8,2.05929]
[1754194943843,0.5303,3446.0,3445.9,1.7871]
[1754194944035,0.8574,3446.0,3445.9,1.7871]
[1754194944343,1.0306,3446.3,3446.2,1.7871]
[1754194944728,1.3444,3446.3,3446.2,1.7871]
[1754194945041,1.8744,3446.3,3446.2,1.7871]
[1754194945942,2.72323392,3446.3,3446.2,1.7871]
[1754194946939,1.8744,3446.3,3446.2,1.7871]
[1754194950140,0.3202,3446.3,3446.2,1.7871]
[1754194950338,3.9612,3446.7,3446.6,1.4788]
[1754194950740,5.0822,3446.7,3446.6,1.4788]
[1754194957148,5.0822,3446.7,3446.6,0.72]
[1754194958048,1.8744,3446.7,3446.6,0.72]
[1754194958545,1.8744,3446.7,3446.6,1.1654]
[1754194962442,1.8744,3446.7,3446.6,1.4882]
[1754194966850,1.8744,3446.7,3446.6,0.2154]
[1754194967053,0.7534,3446.7,3446.5,0.58036]
[1754194967252,1.8524,3446.6,3446.5,1.32316]
[1754194967548,0.7583,3446.6,3446.4,0.58038]
[1754194967754,1.8524,3446.5,3446.4,0.58038]
[1754194969950,1.8524,3446.5,3446.4,1.53008]
[1754194970555,1.8524,3446.5,3446.4,1.73398]
[1754194972352,1.8524,3446.5,3446.4,2.05678]
[1754194973054,1.8524,3446.8,3446.7,2.05672]
[1754194975258,1.8524,3446.8,3446.7,2.37762]
[1754194976261,2.70149036,3446.8,3446.7,2.37762]
[1754194976760,1.8524,3446.8,3446.7,2.37762]
[1754194978256,1.0709,3446.8,3446.7,4.24222019]
[1754194978459,0.8529,3446.8,3446.7,4.24222019]
[1754194978653,3.9893,3447.1,3447.0,0.58029]
[1754194978860,5.69150417,3447.1,3447.0,2.37759]
[1754194979058,4.91000417,3447.1,3447.0,2.37759]
[1754194979258,4.36970417,3447.1,3447.0,2.37759]
[1754194979759,4.05710417,3447.1,3447.0,4.24219019]
[1754194979954,3.2078,3447.1,3447.0,4.24219019]
[1754194980962,3.5204,3447.1,3447.0,4.24219019]
[1754194981369,0.3126,3447.1,3447.0,4.24219019]
[1754194981761,3.513,3447.5,3447.4,2.11092]
[1754194982065,5.88095571,3447.5,3447.4,1.5307]
[1754194982265,5.88095571,3447.5,3447.4,1.856]
[1754194982462,5.032,3447.5,3447.4,1.856]
[1754194985369,4.0311,3447.5,3447.4,1.856]
[1754194985570,5.032,3447.5,3447.4,1.856]
[1754194985972,4.0311,3447.5,3447.4,1.856]
[1754194986374,5.032,3447.5,3447.4,1.856]
[1754194988579,0.5144,3447.6,3447.5,0.5802]
[1754194988771,1.519,3447.6,3447.5,2.1109]
[1754194988974,1.519,3447.6,3447.5,2.4362]
[1754194989176,1.0,3448.0,3447.8,1.547]
[1754194989371,2.1937,3448.0,3447.9,2.43613]
[1754194989573,2.519,3448.0,3447.9,2.43613]
[1754194989975,2.8242,3448.0,3447.9,2.43613]
[1754194990776,1.8233,3448.0,3447.9,2.43613]
[1754194991273,1.3052,3448.0,3447.9,2.43613]
[1754194991675,2.8242,3448.0,3447.9,2.43613]
[1754194998379,0.5144,3447.7,3447.6,0.58018]
[1754194998685,1.8242,3447.5,3447.4,1.78691]
[1754194998885,1.8242,3447.5,3447.4,1.00201]
[1754194999288,1.8242,3447.5,3447.4,1.31101]
[1754194999586,1.8242,3447.5,3447.4,1.78691]
[1754195000172,1.1054,3447.4,3447.1,3.2078]
[1754195000378,0.7188,3447.2,3447.1,5.31877]
[1754195000578,1.8242,3447.2,3447.1,5.64407]
[1754195001684,1.8242,3447.2,3447.1,4.99477]
[1754195001886,1.8242,3447.2,3447.1,5.31877]
[1754195002081,3.78795,3447.9,3447.1,5.31877]
[1754195002082,1.8242,3447.5,3447.4,2.11092]
[1754195002285,1.1937,3447.8,3447.7,1.856]
[1754195002587,1.519,3447.8,3447.7,1.856]
[1754195002883,1.519,3447.8,3447.7,1.5307]
[1754195003085,1.8242,3447.8,3447.7,1.5307]
[1754195003488,0.7188,3447.2,3447.1,3.4178]
[1754195003686,1.8242,3447.2,3447.1,4.7385]
[1754195003987,1.8242,3447.2,3447.1,3.4178]
[1754195004587,1.8242,3447.2,3447.1,3.78807]
[1754195005090,1.8242,3447.2,3447.1,4.09707]
[1754195005487,1.8242,3447.2,3447.1,5.31877]
[1754195005686,1.8242,3447.2,3447.1,5.64407]
[1754195006383,1.8242,3447.2,3447.1,2.43627]
[1754195007991,0.8002,3447.4,3447.1,4.30087019]
[1754195008188,1.519,3447.4,3447.3,2.43623]
[1754195008791,1.8242,3447.4,3447.3,2.43623]
[1754195009481,1.8242,3447.4,3447.3,2.11093]
[1754195010086,1.8242,3447.4,3447.3,2.43623]
[1754195010287,1.8242,3447.8,3447.7,0.7458]
[1754195010494,1.8242,3447.8,3447.7,1.5307]
[1754195011690,1.8242,3447.8,3447.7,2.11087]
[1754195015896,1.8242,3447.8,3447.7,2.41717]
[1754195017194,1.8242,3447.8,3447.7,2.11087]
[1754195019498,1.8242,3447.8,3447.7,2.41717]
[1754195023212,1.3108,3448.0,3447.7,2.41717]
[1754195023412,1.6124,3447.9,3447.8,3.67340019]
[1754195023617,0.3108,3447.9,3447.8,3.67340019]
[1754195023914,1.0,3448.0,3447.9,2.38893]
[1754195024213,2.3047,3448.0,3447.9,2.38893]
[1754195024409,2.8305,3448.0,3447.9,2.38893]
[1754195026014,1.3108,3448.0,3447.9,2.38893]
[1754195026215,1.7664,3448.0,3447.9,2.38893]
[1754195026907,2.287,3448.0,3447.9,2.38893]
[1754195027113,2.6124,3448.0,3447.9,2.38893]
[1754195027319,2.8305,3448.0,3447.9,2.38893]
[1754195028011,2.5051,3448.0,3447.9,2.38893]
[1754195028605,2.8305,3448.0,3447.9,2.38893]
[1754195033118,1.8314,3448.0,3447.9,2.38893]
[1754195033314,2.8305,3448.0,3447.9,2.38893]
[1754195034220,2.287,3448.0,3447.9,2.38893]
[1754195034518,2.8305,3448.0,3447.9,2.38893]
[1754195037520,2.8305,3448.0,3447.9,0.58013]
[1754195037816,0.7387,3447.9,3447.4,0.58022]
[1754195038016,1.8305,3447.5,3447.4,0.58022]
[1754195041228,0.7387,3447.5,3447.3,0.58023]
[1754195041417,1.8305,3447.4,3447.3,0.58023]
[1754195043927,0.7035,3447.2,3447.1,3.78806]
[1754195044228,1.0,3448.0,3446.7,3.2078]
[1754195044229,0.7035,3446.8,3446.7,3.2078]
[1754195044532,1.802,3446.8,3446.7,3.2078]
[1754195044919,1.802,3446.8,3446.7,3.5293]
[1754195045119,1.802,3446.8,3446.7,4.7245]
[1754195045327,1.802,3446.8,3446.7,5.0298]
[1754195045532,1.4823,3446.8,3446.7,5.0298]
[1754195046026,1.802,3446.8,3446.7,5.0298]
[1754195046215,1.4937,3447.3,3447.2,1.31225]
[1754195046422,1.802,3447.3,3447.2,3.48215019]
[1754195046824,1.802,3447.3,3447.2,4.26685019]
[1754195047023,1.0118,3447.3,3447.1,3.2078]
[1754195047223,1.802,3446.8,3446.7,3.2078]
[1754195047425,1.802,3446.8,3446.7,3.5293]
[1754195047725,1.802,3446.8,3446.7,3.9925]
[1754195048029,1.802,3446.8,3446.7,5.30483]
[1754195048535,1.802,3446.8,3446.7,7.16943019]
[1754195048730,1.4937,3447.1,3447.0,2.40228]
[1754195049033,1.802,3447.1,3447.0,2.09698]
[1754195049224,0.5186,3447.0,3446.9,0.5803]
[1754195049426,1.802,3447.0,3446.9,0.5803]
[1754195049831,1.802,3447.0,3446.8,0.58031]
[1754195050132,1.802,3446.9,3446.8,1.57011]
[1754195050832,1.802,3446.9,3446.8,2.09701]
[1754195051237,1.802,3447.2,3447.1,2.40226]
[1754195053830,1.802,3447.2,3447.1,1.5167]
[1754195054238,1.802,3447.2,3447.1,0.5266]
[1754195056840,1.802,3446.9,3446.8,2.09701]
[1754195057037,1.802,3446.9,3446.8,2.40231]
[1754195073338,0.3,3446.8,3446.7,3.78813]
[1754195073541,1.8156,3446.8,3446.7,3.78813]
[1754195074442,1.8156,3446.8,3446.7,4.55743]
[1754195075146,1.8156,3446.8,3446.7,4.95433]
[1754195075844,1.8156,3446.8,3446.7,5.26743]
[1754195076344,1.8156,3446.8,3446.7,3.78813]
[1754195076549,1.8156,3446.8,3446.7,3.2078]
[1754195078648,1.8156,3446.8,3446.7,3.858]
[1754195078847,1.8156,3446.8,3446.7,4.1758]
[1754195079242,1.8156,3446.8,3446.7,4.374]
[1754195079443,1.8156,3446.8,3446.7,4.9898]
[1754195079750,0.5169,3446.8,3446.7,4.9898]
[1754195080049,0.3,3446.8,3446.7,4.9898]
[1754195080348,1.601,3447.0,3446.9,1.782]
[1754195080548,1.8156,3447.0,3446.9,1.782]
[1754195090059,1.8156,3447.0,3446.9,1.4793]
[1754195093457,1.8156,3447.0,3446.9,0.968]
[1754195094060,0.7479,3447.0,3446.8,0.58032]
[1754195094262,1.0677,3446.8,3446.2,3.2078]
[1754195094561,1.8156,3446.3,3446.2,3.78822]
[1754195095161,1.8156,3446.3,3446.2,4.10602]
[1754195095367,1.8156,3446.3,3446.2,4.75622]
[1754195095568,1.8156,3446.3,3446.2,3.78822]
[1754195095764,1.8156,3446.3,3445.9,0.58047]
[1754195095965,1.8156,3446.0,3445.9,1.54847]
[1754195096164,1.8156,3446.0,3445.9,1.74667]
[1754195096760,1.8156,3446.0,3445.9,2.05977]
[1754195097061,1.8156,3446.0,3445.9,2.36247]
[1754195097367,1.8156,3446.3,3446.2,2.36241]
[1754195097767,1.8156,3446.3,3446.2,2.05971]
[1754195098169,1.8156,3446.3,3446.2,2.36241]
[1754195098867,0.7479,3446.3,3446.1,1.03193]
[1754195099062,1.8156,3446.2,3446.1,1.4793]
[1754195100068,1.8156,3446.2,3446.1,0.1987]
[1754195100274,1.8156,3445.8,3445.7,3.2078]
[1754195100469,1.86460019,3446.3,3445.7,3.2078]
[1754195100675,0.531,3446.2,3446.1,1.5833]
[1754195100972,1.8156,3446.2,3446.1,1.4793]
[1754195101870,1.8156,3446.2,3446.1,0.1987]
[1754195102064,0.7397,3445.9,3445.8,2.39499]
[1754195102267,1.8478,3445.9,3445.8,2.39499]
[1754195102464,1.8478,3445.9,3445.8,0.2052]
[1754195102781,0.7397,3444.7,3444.6,0.22971593]
[1754195103071,1.8478,3444.7,3444.6,0.22971593]
[1754195103770,1.2206,3444.7,3444.3,0.58074]
[1754195103976,1.8478,3444.5,3444.4,1.5014]
[1754195104271,1.8478,3444.5,3444.4,1.8145]
[1754195104480,1.8478,3444.5,3444.4,1.5014]
[1754195107079,1.8478,3444.5,3444.4,0.7354]
[1754195107573,0.5332,3444.3,3444.2,1.55195]
[1754195107777,1.8478,3444.3,3444.2,2.08215]
[1754195110377,1.8478,3444.3,3444.2,1.5014]
[1754195110781,1.8478,3444.3,3444.2,1.8145]
[1754195112380,1.8478,3444.3,3444.2,1.5014]
[1754195113586,1.8478,3444.1,3444.0,2.08219]
[1754195114075,1.8478,3444.1,3444.0,2.39529]
[1754195114679,1.8478,3444.1,3444.0,1.8145]
[1754195116282,1.8478,3444.1,3443.9,3.7886]
[1754195116483,20.42071,3444.5,3443.9,3.7886]
[1754195116484,1.8478,3444.0,3443.9,4.5546]
[1754195117084,1.8478,3444.0,3443.9,3.9738]
[1754195117284,20.42071,3444.5,3443.6,0.3131]
[1754195117285,0.7397,3443.7,3443.6,0.4572]
[1754195117487,0.7397,3443.5,3443.4,0.766]
[1754195117677,1.8478,3443.4,3443.3,0.58091]
[1754195117984,1.8478,3443.3,3443.2,1.5014]
[1754195119582,1.8478,3443.3,3443.2,0.4194]
[1754195120286,1.8478,3443.3,3443.1,3.2078]
[1754195120480,0.7397,3443.3,3443.2,0.58093]
[1754195120782,0.7397,3443.3,3443.2,1.77353]
[1754195120984,20.5847,3443.3,3443.2,2.39543]
[1754195121183,20.8959,3443.3,3443.2,2.39543]
[1754195121378,21.6928,3443.3,3443.2,2.39543]
[1754195123687,21.6948,3443.3,3443.2,2.39543]
[1754195124181,1.8478,3443.3,3443.2,2.39543]
[1754195124383,19.847,3443.3,3443.2,2.39543]
[1754195124783,0.7397,3444.1,3444.0,1.31618]
[1754195124983,20.5867,3444.1,3444.0,1.0485]
[1754195125191,0.7397,3444.1,3444.0,0.7354]
[1754195125385,21.6948,3444.1,3444.0,1.0442]
[1754195125584,21.6948,3444.1,3444.0,1.5014]
[1754195126683,1.8478,3444.1,3444.0,1.5014]
[1754195126884,21.6958,3444.1,3444.0,1.5014]
[1754195127192,0.2065,3443.5,3443.4,2.39539]
[1754195127389,1.6422,3443.5,3443.4,2.39539]
[1754195127585,0.8453,3443.5,3443.4,2.39539]
[1754195131988,19.847,3443.6,3443.4,2.39539]
[1754195132295,1.6392,3443.8,3443.7,2.41314]
[1754195132493,21.701,3443.8,3443.7,2.41314]
[1754195133088,1.854,3443.8,3443.7,2.41314]
[1754195133595,21.701,3443.8,3443.7,2.41314]
[1754195134499,21.701,3443.8,3443.7,1.5323]
[1754195137295,21.701,3443.8,3443.7,1.8323]
[1754195140100,21.701,3443.8,3443.7,1.5323]
[1754195144201,21.701,3443.8,3443.7,1.8323]
[1754195147795,21.701,3443.8,3443.7,1.5323]
[1754195148698,21.701,3443.8,3443.7,1.8323]
[1754195158417,1.854,3443.4,3443.1,0.089]
[1754195158712,1.854,3443.2,3443.1,0.089]
[1754195159009,1.854,3443.2,3442.5,3.65038142]
[1754195159010,1.854,3443.2,3442.4,3.6925]
[1754195159207,0.7368,3442.6,3442.5,0.58104]
[1754195159410,21.698,3442.6,3442.4,3.2078]
[1754195159606,1.4343,3442.5,3442.4,4.0208]
[1754195159813,0.7368,3442.3,3442.2,0.58109]
[1754195160009,1.854,3442.2,3442.1,3.65038142]
[1754195160314,1.854,3442.2,3442.1,1.5323]
[1754195161022,21.698,3442.2,3442.1,1.8323]
[1754195161211,21.698,3442.2,3442.1,1.5323]
[1754195161711,21.698,3442.2,3442.0,0.58112]
[1754195161911,1.5211,3442.1,3442.0,2.12452]
[1754195162211,20.8828,3442.1,3442.0,2.44672]
[1754195162717,21.6776,3442.1,3442.0,2.44672]
[1754195163616,21.6776,3442.1,3442.0,2.12452]
[1754195164509,1.8306,3442.0,3441.9,4.25371874]